[Event "Early-Titled-Tuesday-Blitz-April-16-2024"]
[Site "Chess.com"]
[Date "2024.04.16"]
[Round "2"]
[White "amintabatabaei"]
[Black "SirStrateg"]
[Result "1-0"]
[WhiteElo "3044"]
[BlackElo "2627"]
[TimeControl "180+1"]
[EndTime "8:17:25 PDT"]
[Termination "amintabatabaei won by checkmate"]

1. Nf3 {[%clk 0:03:00.9]} 1... d6 {[%clk 0:02:59.4]} 2. d4 {[%clk 0:02:58.7]}
2... Bg4 {[%clk 0:02:58.6]} 3. e4 {[%clk 0:02:58]} 3... Nf6 {[%clk 0:02:58.4]}
4. Nc3 {[%clk 0:02:57.2]} 4... c6 {[%clk 0:02:58.7]} 5. h3 {[%clk 0:02:54.6]}
5... Bh5 {[%clk 0:02:58.8]} 6. g4 {[%clk 0:02:52.4]} 6... Bg6 {[%clk 0:02:59.1]}
7. Qe2 {[%clk 0:02:52.7]} 7... e6 {[%clk 0:02:59.6]} 8. Bg2 {[%clk 0:02:52.1]}
8... d5 {[%clk 0:02:58.5]} 9. exd5 {[%clk 0:02:44.4]} 9... Nxd5 {[%clk 0:02:49]}
10. Ne5 {[%clk 0:02:41.1]} 10... Nxc3 {[%clk 0:02:41.4]} 11. bxc3 {[%clk
0:02:39.9]} 11... Nd7 {[%clk 0:02:37.5]} 12. Nxg6 {[%clk 0:02:30.1]} 12... hxg6
{[%clk 0:02:38.4]} 13. O-O {[%clk 0:02:30]} 13... Nf6 {[%clk 0:02:20.3]} 14. Rb1
{[%clk 0:02:27.1]} 14... Qc7 {[%clk 0:02:18.4]} 15. c4 {[%clk 0:02:25.5]} 15...
Rd8 {[%clk 0:02:11]} 16. Rd1 {[%clk 0:01:36.6]} 16... Be7 {[%clk 0:01:59.5]} 17.
Qf3 {[%clk 0:01:37.1]} 17... Rd7 {[%clk 0:01:29.7]} 18. Bf4 {[%clk 0:01:15.8]}
18... Bd6 {[%clk 0:01:28.5]} 19. Bg5 {[%clk 0:01:09.6]} 19... Nh7 {[%clk
0:01:20.2]} 20. Be3 {[%clk 0:01:06.4]} 20... O-O {[%clk 0:01:16.8]} 21. c5
{[%clk 0:01:04]} 21... Bh2+ {[%clk 0:01:07.4]} 22. Kh1 {[%clk 0:01:03.5]} 22...
g5 {[%clk 0:01:08.2]} 23. h4 {[%clk 0:00:54.8]} 23... gxh4 {[%clk 0:01:04.1]}
24. g5 {[%clk 0:00:55.4]} 24... g6 {[%clk 0:00:47.3]} 25. Qg4 {[%clk 0:00:55.4]}
25... Kg7 {[%clk 0:00:36.6]} 26. Bh3 {[%clk 0:00:30.9]} 26... Rh8 {[%clk
0:00:32.4]} 27. Kg2 {[%clk 0:00:31.2]} 27... Qb8 {[%clk 0:00:27.3]} 28. Qxh4
{[%clk 0:00:27.7]} 28... Nf8 {[%clk 0:00:21.7]} 29. Qg4 {[%clk 0:00:26.9]} 29...
Rh5 {[%clk 0:00:16.9]} 30. f4 {[%clk 0:00:25.1]} 30... Rd5 {[%clk 0:00:08]} 31.
Rh1 {[%clk 0:00:17.2]} 31... Rdxg5 {[%clk 0:00:04.2]} 32. fxg5 {[%clk
0:00:16.8]} 32... Bc7 {[%clk 0:00:04.6]} 33. Qf3 {[%clk 0:00:17]} 33... Nh7
{[%clk 0:00:04.8]} 34. Bg4 {[%clk 0:00:17.2]} 34... Nxg5 {[%clk 0:00:05.2]} 35.
Bxg5 {[%clk 0:00:11.3]} 35... Rxg5 {[%clk 0:00:05.3]} 36. Rh7+ {[%clk 0:00:12]}
36... Kxh7 {[%clk 0:00:04.9]} 37. Qxf7+ {[%clk 0:00:12.6]} 37... Kh6 {[%clk
0:00:04.1]} 38. Rh1+ {[%clk 0:00:13.2]} 38... Rh5 {[%clk 0:00:04.1]} 39. Bxh5
{[%clk 0:00:12.6]} 39... gxh5 {[%clk 0:00:04.2]} 40. Rxh5# {[%clk 0:00:12.2]}
1-0

[Event "Early-Titled-Tuesday-Blitz-April-16-2024"]
[Site "Chess.com"]
[Date "2024.04.16"]
[Round "2"]
[White "XDPS"]
[Black "Tsyhanchuk_Stanislav"]
[Result "0-1"]
[WhiteElo "2849"]
[BlackElo "2439"]
[TimeControl "180+1"]
[EndTime "8:17:25 PDT"]
[Termination "Tsyhanchuk_Stanislav won by checkmate"]

1. d4 {[%clk 0:02:57.8]} 1... Nf6 {[%clk 0:02:59.4]} 2. c4 {[%clk 0:02:57.2]}
2... g6 {[%clk 0:02:58.7]} 3. Nc3 {[%clk 0:02:56.4]} 3... Bg7 {[%clk 0:02:58.9]}
4. e4 {[%clk 0:02:56.9]} 4... d6 {[%clk 0:02:59.4]} 5. Nf3 {[%clk 0:02:57.3]}
5... O-O {[%clk 0:02:59.1]} 6. Be2 {[%clk 0:02:58]} 6... Nbd7 {[%clk 0:02:59.2]}
7. O-O {[%clk 0:02:58.1]} 7... e5 {[%clk 0:02:58]} 8. Re1 {[%clk 0:02:58.6]}
8... Re8 {[%clk 0:02:57.6]} 9. d5 {[%clk 0:02:56.9]} 9... a5 {[%clk 0:02:56.6]}
10. Be3 {[%clk 0:02:51]} 10... b6 {[%clk 0:02:56.2]} 11. Nd2 {[%clk 0:02:50.9]}
11... Nc5 {[%clk 0:02:54.8]} 12. b3 {[%clk 0:02:50.6]} 12... h5 {[%clk
0:02:41.8]} 13. h3 {[%clk 0:02:47]} 13... Nh7 {[%clk 0:02:20.5]} 14. a3 {[%clk
0:02:46.3]} 14... Ng5 {[%clk 0:02:16.8]} 15. b4 {[%clk 0:02:40.4]} 15... Nb7
{[%clk 0:02:06]} 16. Nb3 {[%clk 0:02:27]} 16... a4 {[%clk 0:01:30.6]} 17. Nc1
{[%clk 0:02:26.8]} 17... Bd7 {[%clk 0:01:29.9]} 18. Nd3 {[%clk 0:02:22.8]} 18...
Rf8 {[%clk 0:01:21.4]} 19. c5 {[%clk 0:02:12]} 19... bxc5 {[%clk 0:01:14.1]} 20.
bxc5 {[%clk 0:02:12.9]} 20... Na5 {[%clk 0:00:46.5]} 21. c6 {[%clk 0:02:04]}
21... Bc8 {[%clk 0:00:45.2]} 22. Qxa4 {[%clk 0:02:01.8]} 22... f5 {[%clk
0:00:39.9]} 23. exf5 {[%clk 0:01:35.8]} 23... Bxf5 {[%clk 0:00:35.2]} 24. Rac1
{[%clk 0:01:03.5]} 24... Kh7 {[%clk 0:00:33.6]} 25. Qd1 {[%clk 0:00:49]} 25...
Bh6 {[%clk 0:00:32.8]} 26. Nb5 {[%clk 0:00:48.4]} 26... Nxh3+ {[%clk 0:00:26.7]}
27. gxh3 {[%clk 0:00:48.1]} 27... Bxe3 {[%clk 0:00:27.3]} 28. fxe3 {[%clk
0:00:45.2]} 28... Bxh3 {[%clk 0:00:25.2]} 29. Bf3 {[%clk 0:00:13]} 29... Qg5+
{[%clk 0:00:23.7]} 30. Kh2 {[%clk 0:00:11.7]} 30... Qh4 {[%clk 0:00:21.2]} 31.
Rh1 {[%clk 0:00:03.3]} 31... Bg4+ {[%clk 0:00:14.7]} 32. Kg1 {[%clk 0:00:03.8]}
32... Qg3+ {[%clk 0:00:14.9]} 33. Bg2 {[%clk 0:00:04.3]} 33... Bxd1 {[%clk
0:00:14.1]} 34. Rxd1 {[%clk 0:00:05.2]} 34... Qxe3+ {[%clk 0:00:12.6]} 35. Kh2
{[%clk 0:00:05.8]} 35... h4 {[%clk 0:00:11.5]} 36. Rhe1 {[%clk 0:00:05]} 36...
Qg3+ {[%clk 0:00:11.6]} 37. Kh1 {[%clk 0:00:05.3]} 37... Nc4 {[%clk 0:00:10.7]}
38. Rg1 {[%clk 0:00:04.3]} 38... Ne3 {[%clk 0:00:10.4]} 39. Be4 {[%clk
0:00:04.8]} 39... Qh3# {[%clk 0:00:09.6]} 0-1

[Event "Early-Titled-Tuesday-Blitz-April-16-2024"]
[Site "Chess.com"]
[Date "2024.04.16"]
[Round "2"]
[White "NowInChess"]
[Black "Zarinur"]
[Result "0-1"]
[WhiteElo "2221"]
[BlackElo "2496"]
[TimeControl "180+1"]
[EndTime "8:17:25 PDT"]
[Termination "Zarinur won by checkmate"]

1. e4 {[%clk 0:03:00.9]} 1... e5 {[%clk 0:02:59.5]} 2. Nf3 {[%clk 0:03:00.5]}
2... Nc6 {[%clk 0:02:59.3]} 3. d4 {[%clk 0:03:00.6]} 3... exd4 {[%clk
0:02:59.2]} 4. Bc4 {[%clk 0:02:59.9]} 4... Bc5 {[%clk 0:02:58.4]} 5. c3 {[%clk
0:02:52.4]} 5... Nf6 {[%clk 0:02:56.9]} 6. e5 {[%clk 0:02:51.4]} 6... d5 {[%clk
0:02:56.7]} 7. Bb5 {[%clk 0:02:51.5]} 7... Ne4 {[%clk 0:02:57]} 8. cxd4 {[%clk
0:02:51.6]} 8... Bb6 {[%clk 0:02:56.2]} 9. Nc3 {[%clk 0:02:45.2]} 9... O-O
{[%clk 0:02:54.1]} 10. Be3 {[%clk 0:02:38.8]} 10... Bg4 {[%clk 0:02:34]} 11.
Bxc6 {[%clk 0:02:30.5]} 11... bxc6 {[%clk 0:02:33.8]} 12. h3 {[%clk 0:02:30.2]}
12... Bh5 {[%clk 0:02:04.3]} 13. Qb3 {[%clk 0:02:20.9]} 13... Bxf3 {[%clk
0:01:48.8]} 14. gxf3 {[%clk 0:02:20.6]} 14... Nxc3 {[%clk 0:01:48.9]} 15. Qxc3
{[%clk 0:02:13.8]} 15... Qh4 {[%clk 0:01:44.1]} 16. O-O-O {[%clk 0:02:07.4]}
16... f5 {[%clk 0:01:18.6]} 17. Rdg1 {[%clk 0:01:52.4]} 17... f4 {[%clk
0:01:12.8]} 18. Rg4 {[%clk 0:01:48.2]} 18... Qh6 {[%clk 0:01:13.1]} 19. Bd2
{[%clk 0:01:39.8]} 19... a5 {[%clk 0:00:59.1]} 20. a4 {[%clk 0:01:36]} 20... Rf7
{[%clk 0:00:43.8]} 21. Rhg1 {[%clk 0:01:33.7]} 21... Re8 {[%clk 0:00:36.1]} 22.
h4 {[%clk 0:01:23.2]} 22... Re6 {[%clk 0:00:24]} 23. Qd3 {[%clk 0:01:13.9]}
23... Ree7 {[%clk 0:00:15]} 24. Qa6 {[%clk 0:01:07.1]} 24... Qe6 {[%clk
0:00:09.7]} 25. Qd3 {[%clk 0:00:54.3]} 25... c5 {[%clk 0:00:06.1]} 26. Bxf4
{[%clk 0:00:38.3]} 26... cxd4 {[%clk 0:00:03.5]} 27. Bg5 {[%clk 0:00:38.2]}
27... Re8 {[%clk 0:00:02.9]} 28. Bf6 {[%clk 0:00:36.4]} 28... g6 {[%clk
0:00:02.2]} 29. h5 {[%clk 0:00:36.5]} 29... Rxf6 {[%clk 0:00:01.8]} 30. exf6
{[%clk 0:00:34.5]} 30... Qxf6 {[%clk 0:00:02.2]} 31. hxg6 {[%clk 0:00:33.4]}
31... h6 {[%clk 0:00:02.5]} 32. Rh1 {[%clk 0:00:21.4]} 32... c5 {[%clk
0:00:02.9]} 33. Rxh6 {[%clk 0:00:20.4]} 33... c4 {[%clk 0:00:03.5]} 34. Qd2
{[%clk 0:00:13]} 34... Bc5 {[%clk 0:00:02.7]} 35. Qf4 {[%clk 0:00:11.7]} 35...
Qxf4+ {[%clk 0:00:02.2]} 36. Rxf4 {[%clk 0:00:11.4]} 36... d3 {[%clk 0:00:02.6]}
37. Rfh4 {[%clk 0:00:10.3]} 37... Re1+ {[%clk 0:00:03]} 38. Kd2 {[%clk
0:00:10.2]} 38... Bb4# {[%clk 0:00:03.4]} 0-1

[Event "Early-Titled-Tuesday-Blitz-April-16-2024"]
[Site "Chess.com"]
[Date "2024.04.16"]
[Round "2"]
[White "karinachess1"]
[Black "gurelediz"]
[Result "0-1"]
[WhiteElo "2606"]
[BlackElo "2947"]
[TimeControl "180+1"]
[EndTime "8:17:26 PDT"]
[Termination "gurelediz won by checkmate"]

1. d4 {[%clk 0:03:00.9]} 1... Nf6 {[%clk 0:02:59.4]} 2. c4 {[%clk 0:03:00.6]}
2... e5 {[%clk 0:02:58.2]} 3. dxe5 {[%clk 0:02:58]} 3... Ng4 {[%clk 0:02:58.7]}
4. Bf4 {[%clk 0:02:55.9]} 4... Nc6 {[%clk 0:02:58.4]} 5. Nf3 {[%clk 0:02:55.4]}
5... Bb4+ {[%clk 0:02:57.4]} 6. Nbd2 {[%clk 0:02:50.5]} 6... Qe7 {[%clk
0:02:55.7]} 7. e3 {[%clk 0:02:48]} 7... Ngxe5 {[%clk 0:02:51.9]} 8. Nxe5 {[%clk
0:02:46.2]} 8... Nxe5 {[%clk 0:02:52.8]} 9. Be2 {[%clk 0:02:46.4]} 9... O-O
{[%clk 0:02:51.3]} 10. O-O {[%clk 0:02:46.3]} 10... a5 {[%clk 0:02:42.4]} 11.
Nf3 {[%clk 0:02:40.2]} 11... d6 {[%clk 0:02:39.1]} 12. Rc1 {[%clk 0:02:35.6]}
12... Bd7 {[%clk 0:02:35.3]} 13. Qc2 {[%clk 0:02:06.8]} 13... h6 {[%clk
0:02:24.2]} 14. h3 {[%clk 0:02:03.1]} 14... Rfe8 {[%clk 0:02:21.8]} 15. Rfd1
{[%clk 0:02:02.7]} 15... Rad8 {[%clk 0:02:21.7]} 16. a3 {[%clk 0:01:41.5]} 16...
Bc5 {[%clk 0:02:19.6]} 17. Qc3 {[%clk 0:01:41.8]} 17... a4 {[%clk 0:02:15.5]}
18. Rd2 {[%clk 0:01:20.5]} 18... Ng6 {[%clk 0:02:12.3]} 19. Bg3 {[%clk
0:01:17.8]} 19... Bc6 {[%clk 0:02:07.9]} 20. Rcd1 {[%clk 0:01:17.5]} 20... Be4
{[%clk 0:01:42.7]} 21. Nd4 {[%clk 0:01:15.5]} 21... Qg5 {[%clk 0:01:42.3]} 22.
Bf3 {[%clk 0:01:04.1]} 22... h5 {[%clk 0:01:22.6]} 23. Bxe4 {[%clk 0:00:56.6]}
23... Rxe4 {[%clk 0:01:23.5]} 24. Nf3 {[%clk 0:00:57.2]} 24... Qe7 {[%clk
0:01:23.3]} 25. Rd5 {[%clk 0:00:47.5]} 25... h4 {[%clk 0:01:23.6]} 26. Bh2
{[%clk 0:00:47.9]} 26... Re8 {[%clk 0:01:24]} 27. Nd4 {[%clk 0:00:37.7]} 27...
Ne5 {[%clk 0:01:00.7]} 28. Bxe5 {[%clk 0:00:33]} 28... Rxe5 {[%clk 0:01:01.6]}
29. Nf3 {[%clk 0:00:30.1]} 29... Re4 {[%clk 0:00:58.6]} 30. Ng5 {[%clk
0:00:21.9]} 30... Rxe3 {[%clk 0:00:52.6]} 31. fxe3 {[%clk 0:00:20.2]} 31...
Bxe3+ {[%clk 0:00:53.5]} 32. Kh1 {[%clk 0:00:15.3]} 32... Bxg5 {[%clk
0:00:53.7]} 33. Qf3 {[%clk 0:00:13.4]} 33... Bf6 {[%clk 0:00:52.6]} 34. R5d2
{[%clk 0:00:08.5]} 34... Qe4 {[%clk 0:00:42.6]} 35. Qxe4 {[%clk 0:00:08]} 35...
Rxe4 {[%clk 0:00:43.5]} 36. Rc2 {[%clk 0:00:08.6]} 36... b6 {[%clk 0:00:43.4]}
37. Kg1 {[%clk 0:00:09]} 37... Be5 {[%clk 0:00:42.7]} 38. Kf2 {[%clk 0:00:09.5]}
38... f5 {[%clk 0:00:42.2]} 39. Kf3 {[%clk 0:00:08.9]} 39... Kf7 {[%clk
0:00:41.3]} 40. Rd3 {[%clk 0:00:08.3]} 40... g5 {[%clk 0:00:38]} 41. b3 {[%clk
0:00:07.8]} 41... axb3 {[%clk 0:00:35.1]} 42. Rxb3 {[%clk 0:00:08.7]} 42... Bd4
{[%clk 0:00:33.2]} 43. a4 {[%clk 0:00:07.2]} 43... Kf6 {[%clk 0:00:29.9]} 44.
Ra3 {[%clk 0:00:05.9]} 44... Ke5 {[%clk 0:00:29.8]} 45. a5 {[%clk 0:00:05.7]}
45... g4+ {[%clk 0:00:30.1]} 46. hxg4 {[%clk 0:00:01.9]} 46... fxg4# {[%clk
0:00:31]} 0-1

[Event "Early-Titled-Tuesday-Blitz-April-16-2024"]
[Site "Chess.com"]
[Date "2024.04.16"]
[Round "2"]
[White "Donskov_AN"]
[Black "sonicdravise"]
[Result "0-1"]
[WhiteElo "2360"]
[BlackElo "2603"]
[TimeControl "180+1"]
[EndTime "8:17:28 PDT"]
[Termination "sonicdravise won by checkmate"]

1. e4 {[%clk 0:03:00.9]} 1... d6 {[%clk 0:03:00]} 2. d4 {[%clk 0:03:00.9]} 2...
Nf6 {[%clk 0:03:00.4]} 3. Nc3 {[%clk 0:03:01.4]} 3... e5 {[%clk 0:03:00.9]} 4.
Nf3 {[%clk 0:03:01.5]} 4... exd4 {[%clk 0:03:01.1]} 5. Nxd4 {[%clk 0:03:01.4]}
5... Be7 {[%clk 0:03:01.8]} 6. Bf4 {[%clk 0:03:02]} 6... O-O {[%clk 0:03:00.5]}
7. Qd2 {[%clk 0:03:02.5]} 7... a6 {[%clk 0:02:55.9]} 8. O-O-O {[%clk 0:03:02]}
8... b5 {[%clk 0:02:48.7]} 9. f3 {[%clk 0:03:02.4]} 9... b4 {[%clk 0:02:41.4]}
10. Nd5 {[%clk 0:03:01.7]} 10... Nxd5 {[%clk 0:02:35.5]} 11. exd5 {[%clk
0:03:02.6]} 11... Bf6 {[%clk 0:02:35.3]} 12. Kb1 {[%clk 0:03:02.3]} 12... Bb7
{[%clk 0:02:32.9]} 13. Nf5 {[%clk 0:02:59.9]} 13... Nd7 {[%clk 0:02:30.3]} 14.
g4 {[%clk 0:02:59.8]} 14... g6 {[%clk 0:02:20.8]} 15. Ne3 {[%clk 0:02:58.4]}
15... Nc5 {[%clk 0:02:17.5]} 16. h4 {[%clk 0:02:55.4]} 16... Na4 {[%clk
0:02:15.1]} 17. Nc4 {[%clk 0:02:54.5]} 17... Rb8 {[%clk 0:02:03.8]} 18. Bg5
{[%clk 0:02:43.9]} 18... a5 {[%clk 0:01:21]} 19. Bh6 {[%clk 0:02:03]} 19... Re8
{[%clk 0:01:19.7]} 20. h5 {[%clk 0:01:20.4]} 20... Ba6 {[%clk 0:01:18.9]} 21.
hxg6 {[%clk 0:01:14.7]} 21... fxg6 {[%clk 0:01:18.3]} 22. Qh2 {[%clk 0:00:45]}
22... Qd7 {[%clk 0:00:54.8]} 23. Bc1 {[%clk 0:00:41.1]} 23... Nc3+ {[%clk
0:00:42.5]} 24. bxc3 {[%clk 0:00:38.6]} 24... bxc3+ {[%clk 0:00:43.4]} 25. Ka1
{[%clk 0:00:38.9]} 25... Rb4 {[%clk 0:00:16.3]} 26. Nxa5 {[%clk 0:00:38.8]}
26... Reb8 {[%clk 0:00:11.9]} 27. Nb3 {[%clk 0:00:38.3]} 27... Bxf1 {[%clk
0:00:07.4]} 28. Rhxf1 {[%clk 0:00:37.9]} 28... Qa4 {[%clk 0:00:05.7]} 29. Rh1
{[%clk 0:00:34.8]} 29... h5 {[%clk 0:00:04.9]} 30. Kb1 {[%clk 0:00:17.3]} 30...
Ra8 {[%clk 0:00:02.9]} 31. a3 {[%clk 0:00:17.4]} 31... Rxb3+ {[%clk 0:00:03.3]}
32. cxb3 {[%clk 0:00:18.3]} 32... Qxb3+ {[%clk 0:00:03.7]} 33. Bb2 {[%clk
0:00:18.9]} 33... cxb2 {[%clk 0:00:03]} 34. g5 {[%clk 0:00:12.9]} 34... Rxa3
{[%clk 0:00:03]} 35. gxf6 {[%clk 0:00:08.3]} 35... Ra1# {[%clk 0:00:03.4]} 0-1

[Event "Early-Titled-Tuesday-Blitz-April-16-2024"]
[Site "Chess.com"]
[Date "2024.04.16"]
[Round "2"]
[White "Boundless_Strike"]
[Black "Polish_fighter3000"]
[Result "0-1"]
[WhiteElo "2650"]
[BlackElo "3164"]
[TimeControl "180+1"]
[EndTime "8:17:30 PDT"]
[Termination "Polish_fighter3000 won by checkmate"]

1. d4 {[%clk 0:03:00.9]} 1... Nf6 {[%clk 0:02:56.3]} 2. f3 {[%clk 0:03:01.4]}
2... d5 {[%clk 0:02:53.9]} 3. e4 {[%clk 0:03:02.1]} 3... dxe4 {[%clk 0:02:52.3]}
4. Nc3 {[%clk 0:03:02.6]} 4... exf3 {[%clk 0:02:47.3]} 5. Nxf3 {[%clk
0:03:03.5]} 5... Bf5 {[%clk 0:02:39.5]} 6. Ne5 {[%clk 0:03:03]} 6... c6 {[%clk
0:02:30.8]} 7. g4 {[%clk 0:03:01.8]} 7... Be6 {[%clk 0:02:30.3]} 8. g5 {[%clk
0:02:52.8]} 8... Nd5 {[%clk 0:02:29.7]} 9. Ne4 {[%clk 0:02:51.3]} 9... Nd7
{[%clk 0:02:29.3]} 10. Nd3 {[%clk 0:02:51.4]} 10... Bf5 {[%clk 0:02:27.2]} 11.
Qf3 {[%clk 0:02:50.8]} 11... e6 {[%clk 0:02:23.8]} 12. Bd2 {[%clk 0:02:42.8]}
12... Qb6 {[%clk 0:02:23.2]} 13. c3 {[%clk 0:01:59.5]} 13... Be7 {[%clk
0:02:08.2]} 14. O-O-O {[%clk 0:01:56.2]} 14... Qa6 {[%clk 0:01:58.2]} 15. Kb1
{[%clk 0:01:27.5]} 15... b5 {[%clk 0:01:58.6]} 16. Ka1 {[%clk 0:01:19.2]} 16...
Qb7 {[%clk 0:01:52.1]} 17. h4 {[%clk 0:01:13.5]} 17... a5 {[%clk 0:01:47.4]} 18.
Ng3 {[%clk 0:01:00.6]} 18... g6 {[%clk 0:01:40.3]} 19. Nxf5 {[%clk 0:00:59.9]}
19... gxf5 {[%clk 0:01:39.5]} 20. Rc1 {[%clk 0:00:57.2]} 20... a4 {[%clk
0:01:36.7]} 21. c4 {[%clk 0:00:56.5]} 21... bxc4 {[%clk 0:01:36.2]} 22. Rxc4
{[%clk 0:00:57.4]} 22... a3 {[%clk 0:01:33.2]} 23. b3 {[%clk 0:00:56.9]} 23...
h6 {[%clk 0:01:21.5]} 24. Be2 {[%clk 0:00:40.5]} 24... hxg5 {[%clk 0:01:18.2]}
25. hxg5 {[%clk 0:00:41]} 25... Rxh1+ {[%clk 0:01:09.9]} 26. Qxh1 {[%clk
0:00:41.9]} 26... Bd6 {[%clk 0:00:44.3]} 27. g6 {[%clk 0:00:24.9]} 27... fxg6
{[%clk 0:00:40.5]} 28. Qh7 {[%clk 0:00:25.5]} 28... Ne7 {[%clk 0:00:31]} 29. Nf4
{[%clk 0:00:23.6]} 29... Nf8 {[%clk 0:00:30.1]} 30. Qg7 {[%clk 0:00:21.9]} 30...
O-O-O {[%clk 0:00:29.1]} 31. Qf7 {[%clk 0:00:22.3]} 31... Nd5 {[%clk 0:00:27.3]}
32. Qg8 {[%clk 0:00:09.5]} 32... Nxf4 {[%clk 0:00:17.5]} 33. Bxf4 {[%clk
0:00:09.6]} 33... Bxf4 {[%clk 0:00:18.4]} 34. Bf3 {[%clk 0:00:10.4]} 34... Kb8
{[%clk 0:00:14.1]} 35. Rxc6 {[%clk 0:00:10.7]} 35... Qb4 {[%clk 0:00:12]} 36.
Kb1 {[%clk 0:00:08]} 36... Qe1+ {[%clk 0:00:11]} 37. Kc2 {[%clk 0:00:08.5]}
37... Qd2+ {[%clk 0:00:08.6]} 38. Kb1 {[%clk 0:00:08.9]} 38... Qd3+ {[%clk
0:00:09.1]} 39. Rc2 {[%clk 0:00:06.5]} 39... Qf1+ {[%clk 0:00:09.6]} 40. Bd1
{[%clk 0:00:06.3]} 40... Qxd1+ {[%clk 0:00:10.1]} 41. Rc1 {[%clk 0:00:06.9]}
41... Qxc1# {[%clk 0:00:10.8]} 0-1

[Event "Early-Titled-Tuesday-Blitz-April-16-2024"]
[Site "Chess.com"]
[Date "2024.04.16"]
[Round "2"]
[White "TheCount"]
[Black "MIss_MIaMI"]
[Result "1-0"]
[WhiteElo "2680"]
[BlackElo "2361"]
[TimeControl "180+1"]
[EndTime "8:17:33 PDT"]
[Termination "TheCount won by checkmate"]

1. d4 {[%clk 0:03:00.9]} 1... c5 {[%clk 0:03:00.4]} 2. d5 {[%clk 0:02:58.9]}
2... g6 {[%clk 0:03:00.7]} 3. e4 {[%clk 0:02:58.8]} 3... Bg7 {[%clk 0:03:01.1]}
4. Nf3 {[%clk 0:02:58.8]} 4... d6 {[%clk 0:03:01.3]} 5. h3 {[%clk 0:02:58.9]}
5... a6 {[%clk 0:03:01.6]} 6. a4 {[%clk 0:02:55.6]} 6... b6 {[%clk 0:03:01.5]}
7. Be2 {[%clk 0:02:51.9]} 7... Nd7 {[%clk 0:02:58.2]} 8. O-O {[%clk 0:02:51.9]}
8... Ngf6 {[%clk 0:02:58.9]} 9. Nc3 {[%clk 0:02:47.5]} 9... O-O {[%clk 0:02:58]}
10. Re1 {[%clk 0:02:47.5]} 10... Ne8 {[%clk 0:02:56.8]} 11. Bf4 {[%clk
0:02:47.7]} 11... Ne5 {[%clk 0:02:55.7]} 12. Qd2 {[%clk 0:02:44.4]} 12... Nxf3+
{[%clk 0:02:44.8]} 13. Bxf3 {[%clk 0:02:44.1]} 13... f6 {[%clk 0:02:30.8]} 14.
h4 {[%clk 0:02:27.9]} 14... Rb8 {[%clk 0:02:18.9]} 15. Bh6 {[%clk 0:02:15.4]}
15... Qc7 {[%clk 0:01:58.2]} 16. Ne2 {[%clk 0:01:58.5]} 16... b5 {[%clk
0:01:48.3]} 17. axb5 {[%clk 0:01:58.4]} 17... axb5 {[%clk 0:01:49.2]} 18. h5
{[%clk 0:01:49.8]} 18... g5 {[%clk 0:01:45.6]} 19. Bxg7 {[%clk 0:01:50.3]} 19...
Nxg7 {[%clk 0:01:42.2]} 20. h6 {[%clk 0:01:50.7]} 20... Ne8 {[%clk 0:01:41.7]}
21. Ng3 {[%clk 0:01:51.3]} 21... Kh8 {[%clk 0:01:29.4]} 22. Bh5 {[%clk
0:01:51.7]} 22... Bd7 {[%clk 0:01:04.3]} 23. f4 {[%clk 0:01:52.2]} 23... gxf4
{[%clk 0:01:02.1]} 24. Qxf4 {[%clk 0:01:52.6]} 24... Rg8 {[%clk 0:00:59.6]} 25.
Bf7 {[%clk 0:01:51.1]} 25... Rg5 {[%clk 0:00:56.7]} 26. Nf5 {[%clk 0:01:33.3]}
26... Bxf5 {[%clk 0:00:52.5]} 27. exf5 {[%clk 0:01:34.2]} 27... Qd7 {[%clk
0:00:43.2]} 28. Be6 {[%clk 0:01:34.1]} 28... Qd8 {[%clk 0:00:42.4]} 29. Bf7
{[%clk 0:00:50]} 29... Nc7 {[%clk 0:00:37.4]} 30. Qe4 {[%clk 0:00:50.7]} 30...
Qf8 {[%clk 0:00:07.3]} 31. Qxe7 {[%clk 0:00:50.5]} 31... Qxh6 {[%clk 0:00:08]}
32. Re2 {[%clk 0:00:49.7]} 32... Qg7 {[%clk 0:00:06]} 33. Ra7 {[%clk 0:00:30.3]}
33... Nxd5 {[%clk 0:00:04.3]} 34. Bxd5 {[%clk 0:00:30.1]} 34... Qxe7 {[%clk
0:00:02.6]} 35. Raxe7 {[%clk 0:00:30]} 35... c4 {[%clk 0:00:01.3]} 36. Re8+
{[%clk 0:00:30.3]} 36... Rxe8 {[%clk 0:00:01.2]} 37. Rxe8+ {[%clk 0:00:31.2]}
37... Kg7 {[%clk 0:00:01.9]} 38. Re7+ {[%clk 0:00:28.7]} 38... Kh6 {[%clk
0:00:02.8]} 39. Re6 {[%clk 0:00:29.6]} 39... Kh5 {[%clk 0:00:02.8]} 40. Rxf6
{[%clk 0:00:29.7]} 40... Kg4 {[%clk 0:00:02.9]} 41. Bf3+ {[%clk 0:00:29.8]}
41... Kf4 {[%clk 0:00:03.2]} 42. Rxd6 {[%clk 0:00:29]} 42... Rxf5 {[%clk
0:00:03.3]} 43. Rd5 {[%clk 0:00:26.2]} 43... Rf8 {[%clk 0:00:02.9]} 44. Rxb5
{[%clk 0:00:26.5]} 44... Ke3 {[%clk 0:00:03.7]} 45. Rb4 {[%clk 0:00:24]} 45...
Rf4 {[%clk 0:00:03.4]} 46. b3 {[%clk 0:00:22.2]} 46... Rd4 {[%clk 0:00:02.3]}
47. Rxc4 {[%clk 0:00:22.2]} 47... Rd2 {[%clk 0:00:03.1]} 48. Re4# {[%clk
0:00:20.6]} 1-0